[Event "Campeonato de España Universitario Relámpago"]
[Site "Zaragoza, Spain"]
[Date "2024.04.24"]
[Round "2.1"]
[White "Lianes Garcia, Marcos"]
[Black "Donate Moreno, Silvia"]
[Result "1-0"]
[TimeControl "3 min + 2 sg"]
[WhiteFideId "32060777"]
[BlackFideId "24581887"]
[WhiteElo "2382"]
[BlackElo "2047"]

1. e4 {[%clk 00:03:03]} {[%emt 00:16:59]} c5 {[%clk 00:03:03]} {[%emt
00:00:02]} 2. g3 {[%clk 00:03:05]} d5 {[%clk 00:03:01]} {[%emt 00:00:04]} 3.
exd5 {[%clk 00:03:05]} {[%emt 00:00:02]} Qxd5 {[%clk 00:03:02]} {[%emt
00:00:01]} 4. Nf3 {[%clk 00:03:06]} Bg4 {[%clk 00:03:03]} 5. Bg2 {[%clk
00:03:08]} Qe6+ {[%clk 00:03:02]} {[%emt 00:00:03]} 6. Kf1 {[%clk 00:03:09]}
{[%emt 00:00:01]} Nc6 {[%clk 00:03:01]} {[%emt 00:00:03]} 7. h3 {[%clk
00:03:10]} Bh5 {[%clk 00:03:02]} {[%emt 00:00:02]} 8. d3 {[%clk 00:03:11]} Qd7
{[%clk 00:03:01]} {[%emt 00:00:03]} 9. Na3 {[%clk 00:03:12]} {[%emt 00:00:02]}
Nf6 {[%clk 00:02:56]} {[%emt 00:00:07]} 10. Nc4 {[%clk 00:03:13]} {[%emt
00:00:02]} e6 {[%clk 00:02:52]} {[%emt 00:00:05]} 11. g4 {[%clk 00:03:14]}
{[%emt 00:00:01]} Bg6 {[%clk 00:02:53]} {[%emt 00:00:01]} 12. Nfe5 {[%clk
00:03:15]} Nxe5 {[%clk 00:02:47]} {[%emt 00:00:08]} 13. Nxe5 {[%clk 00:03:16]}
{[%emt 00:00:01]} Qc7 {[%clk 00:02:43]} {[%emt 00:00:07]} 14. Bf4 {[%clk
00:03:16]} {[%emt 00:00:01]} Bd6 {[%clk 00:02:43]} {[%emt 00:00:01]} 15. Nxg6
{[%clk 00:03:17]} {[%emt 00:00:01]} hxg6 {[%clk 00:02:43]} {[%emt 00:00:02]} 16.
Bxd6 {[%clk 00:03:18]} Qxd6 {[%clk 00:02:44]} {[%emt 00:00:01]} 17. Bxb7 {[%clk
00:03:18]} {[%emt 00:00:02]} Rb8 {[%clk 00:02:45]} 18. Qf3 {[%clk 00:03:19]}
{[%emt 00:00:01]} O-O {[%clk 00:02:22]} {[%emt 00:00:25]} 19. b3 {[%clk
00:03:20]} {[%emt 00:00:01]} Rfd8 {[%clk 00:02:06]} {[%emt 00:00:17]} 20. Re1
{[%clk 00:03:13]} {[%emt 00:00:08]} Qd4 {[%clk 00:01:58]} {[%emt 00:00:11]} 21.
Ba6 {[%clk 00:02:38]} {[%emt 00:00:38]} Qc3 {[%clk 00:01:39]} {[%emt 00:00:20]}
22. Re2 {[%clk 00:02:31]} {[%emt 00:00:10]} Qa5 {[%clk 00:01:25]} {[%emt
00:00:16]} 23. Bc4 {[%clk 00:02:29]} {[%emt 00:00:03]} Qxa2 {[%clk 00:01:10]}
{[%emt 00:00:17]} 24. Kg2 {[%clk 00:02:30]} {[%emt 00:00:01]} Qa5 {[%clk
00:01:05]} {[%emt 00:00:08]} 25. Rhe1 {[%clk 00:02:19]} {[%emt 00:00:13]} Qc7
{[%clk 00:00:56]} {[%emt 00:00:12]} 26. Ra1 {[%clk 00:02:17]} {[%emt 00:00:04]}
Rd4 {[%clk 00:00:45]} {[%emt 00:00:12]} 27. Ra6 {[%clk 00:01:54]} {[%emt
00:00:25]} Rf4 {[%clk 00:00:44]} {[%emt 00:00:04]} 28. Qc6 {[%clk 00:01:53]}
{[%emt 00:00:03]} Rc8 {[%clk 00:00:40]} {[%emt 00:00:06]} 29. Qxc7 {[%clk
00:01:47]} {[%emt 00:00:09]} Rxc7 {[%clk 00:00:41]} 30. Re1 {[%clk 00:01:47]}
{[%emt 00:00:02]} Nd7 {[%clk 00:00:29]} {[%emt 00:00:14]} 31. Rea1 {[%clk
00:01:43]} {[%emt 00:00:06]} Ne5 {[%clk 00:00:24]} {[%emt 00:00:07]} 32. Rxa7
{[%clk 00:01:40]} {[%emt 00:00:05]} Rxa7 {[%clk 00:00:24]} {[%emt 00:00:02]} 33.
Rxa7 {[%emt 00:00:10]} Nc6 {[%clk 00:00:13]} {[%emt 00:00:03]} 34. Rc7 {[%clk
00:01:22]} {[%emt 00:00:21]} Nd4 {[%clk 00:00:11]} {[%emt 00:00:05]} 35. c3
{[%clk 00:01:19]} {[%emt 00:00:06]} Ne2 {[%clk 00:00:08]} {[%emt 00:00:04]} 36.
Rxc5 {[%clk 00:01:03]} {[%emt 00:00:18]} Nxc3 {[%clk 00:00:09]} {[%emt
00:00:02]} 37. b4 {[%clk 00:00:54]} {[%emt 00:00:11]} Rd4 {[%clk 00:00:09]}
{[%emt 00:00:01]} 38. Rc8+ {[%clk 00:00:47]} {[%emt 00:00:09]} Kh7 {[%clk
00:00:10]} 39. b5 {[%clk 00:00:48]} {[%emt 00:00:01]} Na4 {[%clk 00:00:10]}
{[%emt 00:00:02]} 40. Rc7 {[%clk 00:00:48]} {[%emt 00:00:03]} Kg8 {[%clk
00:00:10]} {[%emt 00:00:03]} 41. Kf3 {[%clk 00:00:48]} {[%emt 00:00:01]} e5
{[%clk 00:00:09]} {[%emt 00:00:03]} 42. Bxf7+ {[%clk 00:00:46]} {[%emt
00:00:04]} Kh7 {[%clk 00:00:09]} {[%emt 00:00:02]} 43. Bc4 {[%clk 00:00:46]}
{[%emt 00:00:02]} Nb6 {[%clk 00:00:07]} {[%emt 00:00:04]} 44. Ke3 {[%clk
00:00:46]} {[%emt 00:00:02]} Rd6 {[%clk 00:00:07]} {[%emt 00:00:03]} 45. Rc6
{[%clk 00:00:44]} {[%emt 00:00:03]} Nxc4+ {[%clk 00:00:06]} {[%emt 00:00:03]}
46. dxc4 {[%clk 00:00:44]} {[%emt 00:00:02]} 1-0

[Event "Campeonato de España Universitario Relámpago"]
[Site "Zaragoza, Spain"]
[Date "2024.04.24"]
[Round "2.2"]
[White "Eizaguerri Floris, Maria"]
[Black "Lopez Mulet, Inigo"]
[Result "0-1"]
[TimeControl "3 min + 2 sg"]
[WhiteFideId "32065752"]
[BlackFideId "22235620"]
[WhiteElo "2037"]
[BlackElo "2347"]

1. e4 {[%clk 00:03:03]} g6 {[%clk 00:03:02]} {[%emt 00:00:02]} 2. d4 {[%clk
00:03:04]} Bg7 {[%clk 00:03:04]} 3. Nc3 {[%clk 00:03:02]} {[%emt 00:00:04]} c5
{[%clk 00:03:02]} {[%emt 00:00:04]} 4. Nf3 {[%clk 00:02:57]} {[%emt 00:00:07]}
Qa5 {[%clk 00:02:57]} {[%emt 00:00:07]} 5. Be3 {[%clk 00:02:49]} {[%emt
00:00:11]} Nf6 {[%clk 00:02:44]} {[%emt 00:00:15]} 6. Qd2 {[%clk 00:02:48]}
{[%emt 00:00:03]} Ng4 {[%clk 00:02:22]} {[%emt 00:00:23]} 7. Nd5 {[%clk
00:02:33]} {[%emt 00:00:16]} Qd8 {[%clk 00:01:23]} {[%emt 00:01:01]} 8. Bf4
{[%clk 00:02:05]} {[%emt 00:00:30]} d6 {[%clk 00:01:06]} {[%emt 00:00:19]} 9.
dxc5 {[%clk 00:02:05]} {[%emt 00:00:03]} e6 {[%clk 00:00:30]} {[%emt 00:00:37]}
10. Nc3 {[%clk 00:01:35]} {[%emt 00:00:31]} dxc5 {[%clk 00:00:31]} {[%emt
00:00:02]} 11. Qxd8+ {[%clk 00:00:57]} {[%emt 00:00:40]} Kxd8 {[%clk 00:00:32]}
12. Rd1+ {[%clk 00:00:27]} {[%emt 00:00:32]} Nd7 {[%clk 00:00:17]} {[%emt
00:00:17]} 13. Nb5 {[%clk 00:00:21]} {[%emt 00:00:08]} Bxb2 {[%clk 00:00:09]}
{[%emt 00:00:10]} 14. Nc7 {[%clk 00:00:17]} {[%emt 00:00:06]} Rb8 {[%clk
00:00:09]} {[%emt 00:00:01]} 15. Nxe6+ {[%clk 00:00:15]} {[%emt 00:00:04]} fxe6
{[%clk 00:00:11]} 16. Bxb8 {[%clk 00:00:16]} {[%emt 00:00:01]} Bc3+ {[%clk
00:00:11]} 17. Ke2 {[%clk 00:00:16]} {[%emt 00:00:02]} b6 {[%clk 00:00:11]}
{[%emt 00:00:03]} 18. Ng5 {[%clk 00:00:11]} {[%emt 00:00:07]} Ke7 {[%clk
00:00:07]} {[%emt 00:00:06]} 19. Bd6+ {[%clk 00:00:08]} {[%emt 00:00:05]} Kf6
{[%clk 00:00:08]} 20. h4 {[%clk 00:00:06]} {[%emt 00:00:04]} Nde5 {[%clk
00:00:08]} {[%emt 00:00:02]} 21. Bxe5+ {[%clk 00:00:03]} {[%emt 00:00:04]} Nxe5
{[%clk 00:00:09]} {[%emt 00:00:01]} 22. f3 {[%clk 00:00:03]} {[%emt 00:00:03]}
Bd4 {[%clk 00:00:09]} {[%emt 00:00:02]} 23. Ke1 {[%clk 00:00:03]} {[%emt
00:00:02]} Rd8 {[%clk 00:00:09]} {[%emt 00:00:02]} 24. Nh3 {[%clk 00:00:04]}
{[%emt 00:00:01]} Bc3+ {[%clk 00:00:10]} {[%emt 00:00:02]} 25. Ke2 {[%clk
00:00:05]} Ba6+ 26. Rd3 Nxd3 {[%clk 00:00:12]} {[%emt 00:00:01]} 27. cxd3
{[%clk 00:00:08]} Rxd3 {[%clk 00:00:13]} {[%emt 00:00:01]} 28. Kf2 {[%clk
00:00:09]} Rd1 {[%clk 00:00:13]} {[%emt 00:00:02]} 29. Ng5 {[%clk 00:00:07]}
{[%emt 00:00:04]} Bd4+ {[%clk 00:00:14]} {[%emt 00:00:01]} 30. Kg3 {[%clk
00:00:07]} {[%emt 00:00:02]} Rxf1 {[%clk 00:00:14]} {[%emt 00:00:01]} 31. Rxf1
{[%clk 00:00:07]} {[%emt 00:00:02]} Bxf1 {[%clk 00:00:16]} {[%emt 00:00:01]} 32.
Nxh7+ {[%clk 00:00:08]} Ke7 {[%clk 00:00:16]} {[%emt 00:00:02]} 33. Ng5 {[%clk
00:00:09]} {[%emt 00:00:01]} Bf6 {[%clk 00:00:15]} {[%emt 00:00:03]} 34. Nh3
{[%clk 00:00:09]} {[%emt 00:00:01]} Bc4 {[%clk 00:00:16]} {[%emt 00:00:01]} 35.
Nf4 {[%clk 00:00:10]} Kf7 {[%clk 00:00:16]} {[%emt 00:00:01]} 36. a3 {[%clk
00:00:11]} Bb3 {[%clk 00:00:17]} {[%emt 00:00:02]} 37. Nd3 {[%clk 00:00:12]} c4
{[%clk 00:00:17]} {[%emt 00:00:02]} 38. Nc1 {[%clk 00:00:08]} {[%emt 00:00:06]}
Bb2 {[%clk 00:00:16]} {[%emt 00:00:03]} 39. Ne2 {[%clk 00:00:09]} {[%emt
00:00:02]} Bd1 {[%clk 00:00:16]} {[%emt 00:00:01]} 0-1

[Event "Campeonato de España Universitario Relámpago"]
[Site "Zaragoza, Spain"]
[Date "2024.04.24"]
[Round "2.3"]
[White "Luque Saiz, Andres"]
[Black "Rodriguez Pereira, Enrique"]
[Result "1-0"]
[TimeControl "3 min + 2 sg"]
[WhiteFideId "24510793"]
[BlackFideId "24543160"]
[WhiteElo "2346"]
[BlackElo "2027"]

1. e4 {[%clk 00:03:02]} c5 {[%clk 00:03:02]} {[%emt 00:00:02]} 2. Nf3 {[%clk
00:03:03]} {[%emt 00:00:02]} Nc6 {[%clk 00:03:02]} {[%emt 00:00:01]} 3. Bb5
{[%clk 00:03:04]} Nf6 {[%clk 00:03:01]} {[%emt 00:00:04]} 4. e5 {[%clk
00:02:59]} {[%emt 00:00:08]} Nd5 {[%clk 00:03:01]} {[%emt 00:00:01]} 5. Nc3
{[%clk 00:03:00]} {[%emt 00:00:01]} Nc7 {[%clk 00:02:56]} {[%emt 00:00:06]} 6.
Bc4 {[%clk 00:02:41]} {[%emt 00:00:21]} g6 {[%clk 00:02:50]} {[%emt 00:00:08]}
7. O-O {[%clk 00:02:30]} {[%emt 00:00:13]} Bg7 {[%clk 00:02:50]} {[%emt
00:00:02]} 8. Re1 {[%clk 00:02:31]} {[%emt 00:00:01]} O-O {[%clk 00:02:48]}
{[%emt 00:00:04]} 9. a4 {[%clk 00:02:28]} {[%emt 00:00:06]} d5 {[%clk
00:02:18]} {[%emt 00:00:31]} 10. exd6 {[%clk 00:02:29]} {[%emt 00:00:01]} exd6
{[%clk 00:02:19]} {[%emt 00:00:01]} 11. h3 {[%clk 00:02:28]} {[%emt 00:00:03]}
d5 {[%clk 00:02:16]} {[%emt 00:00:04]} 12. Ba2 {[%clk 00:02:29]} {[%emt
00:00:01]} b6 {[%clk 00:01:52]} {[%emt 00:00:26]} 13. d3 {[%clk 00:02:30]}
{[%emt 00:00:01]} Bb7 {[%clk 00:01:52]} {[%emt 00:00:02]} 14. Bg5 {[%clk
00:02:28]} {[%emt 00:00:04]} Qd7 {[%clk 00:01:51]} {[%emt 00:00:03]} 15. Qd2
{[%clk 00:02:21]} {[%emt 00:00:10]} Nd4 {[%clk 00:01:42]} {[%emt 00:00:10]} 16.
Nxd4 {[%clk 00:02:02]} {[%emt 00:00:21]} Bxd4 {[%clk 00:01:38]} {[%emt
00:00:06]} 17. Re7 {[%clk 00:01:57]} {[%emt 00:00:08]} Qd6 {[%clk 00:01:30]}
{[%emt 00:00:10]} 18. Rae1 {[%clk 00:01:56]} {[%emt 00:00:02]} Ne6 {[%clk
00:01:18]} {[%emt 00:00:15]} 19. Rxb7 {[%clk 00:01:54]} {[%emt 00:00:04]} Rfe8
{[%clk 00:00:49]} {[%emt 00:00:30]} 20. Nb5 {[%clk 00:01:12]} {[%emt 00:00:45]}
Qc6 {[%clk 00:00:31]} {[%emt 00:00:20]} 21. Re7 {[%clk 00:01:13]} {[%emt
00:00:02]} Nxg5 {[%clk 00:00:25]} {[%emt 00:00:07]} 22. Qxg5 {[%clk 00:00:54]}
{[%emt 00:00:21]} Bxb2 {[%clk 00:00:21]} {[%emt 00:00:06]} 23. Bxd5 {[%clk
00:00:52]} {[%emt 00:00:03]} Rxe7 {[%clk 00:00:16]} {[%emt 00:00:07]} 24. Rxe7
{[%clk 00:00:42]} {[%emt 00:00:12]} Qf6 {[%clk 00:00:13]} {[%emt 00:00:04]} 25.
Qxf6 {[%clk 00:00:42]} {[%emt 00:00:04]} Bxf6 {[%clk 00:00:13]} {[%emt
00:00:02]} 26. Rxf7 {[%clk 00:00:42]} {[%emt 00:00:02]} Rd8 {[%clk 00:00:11]}
{[%emt 00:00:03]} 27. Rd7+ {[%clk 00:00:39]} {[%emt 00:00:04]} Kh8 {[%clk
00:00:09]} {[%emt 00:00:08]} 28. Rxd8+ {[%clk 00:00:40]} {[%emt 00:00:02]} Bxd8
{[%clk 00:00:10]} {[%emt 00:00:01]} 29. Nxa7 {[%clk 00:00:41]} Kg7 {[%clk
00:00:07]} {[%emt 00:00:03]} 30. Nc6 {[%clk 00:00:42]} {[%emt 00:00:03]} Bc7
{[%clk 00:00:08]} {[%emt 00:00:01]} 31. Kf1 {[%clk 00:00:42]} {[%emt 00:00:01]}
1-0

[Event "Campeonato de España Universitario Relámpago"]
[Site "Zaragoza, Spain"]
[Date "2024.04.24"]
[Round "2.4"]
[White "Colichon Rebryck, Carlos Alexei"]
[Black "Quispe Arteaga, Gabriel"]
[Result "0-1"]
[TimeControl "3 min + 2 sg"]
[WhiteFideId "24523690"]
[BlackFideId "32059809"]
[WhiteElo "2030"]
[BlackElo "2304"]

1. e4 {[%clk 00:03:02]} {[%emt 00:00:01]} c5 {[%clk 00:03:03]} {[%emt
00:00:01]} 2. Nc3 {[%clk 00:03:03]} {[%emt 00:00:01]} e6 {[%clk 00:03:03]}
{[%emt 00:00:01]} 3. f4 {[%clk 00:03:00]} {[%emt 00:00:06]} a6 {[%clk
00:03:03]} {[%emt 00:00:02]} 4. a4 {[%clk 00:03:01]} {[%emt 00:00:01]} Nc6
{[%clk 00:03:04]} {[%emt 00:00:01]} 5. Nf3 {[%clk 00:03:01]} {[%emt 00:00:01]}
d5 {[%clk 00:03:04]} {[%emt 00:00:01]} 6. d3 {[%clk 00:03:02]} {[%emt
00:00:01]} Nf6 {[%clk 00:03:05]} {[%emt 00:00:01]} 7. e5 {[%clk 00:02:46]}
{[%emt 00:00:19]} Ng8 {[%clk 00:03:01]} {[%emt 00:00:05]} 8. Be2 {[%clk
00:02:34]} {[%emt 00:00:14]} Nge7 {[%clk 00:03:02]} {[%emt 00:00:01]} 9. O-O
{[%clk 00:02:34]} {[%emt 00:00:02]} h5 {[%clk 00:03:02]} {[%emt 00:00:02]} 10.
d4 {[%clk 00:02:08]} {[%emt 00:00:28]} Nf5 {[%clk 00:03:01]} {[%emt 00:00:03]}
11. dxc5 {[%clk 00:01:19]} {[%emt 00:00:51]} Bxc5+ {[%clk 00:03:01]} {[%emt
00:00:01]} 12. Kh1 {[%clk 00:01:21]} h4 {[%clk 00:03:02]} {[%emt 00:00:02]} 13.
h3 {[%clk 00:01:14]} {[%emt 00:00:09]} Ng3+ {[%clk 00:03:01]} {[%emt 00:00:03]}
14. Kh2 {[%clk 00:01:15]} {[%emt 00:00:01]} Nxf1+ {[%clk 00:03:01]} {[%emt
00:00:01]} 15. Bxf1 {[%clk 00:01:12]} {[%emt 00:00:05]} Ne7 {[%clk 00:02:56]}
{[%emt 00:00:08]} 16. Rb1 {[%clk 00:00:45]} {[%emt 00:00:29]} Nf5 {[%clk
00:02:53]} {[%emt 00:00:05]} 17. b4 {[%clk 00:00:26]} {[%emt 00:00:21]} Ba7
{[%clk 00:02:52]} {[%emt 00:00:03]} 18. Qd3 {[%clk 00:00:22]} {[%emt 00:00:05]}
Bd7 {[%clk 00:02:52]} {[%emt 00:00:03]} 19. b5 {[%clk 00:00:19]} {[%emt
00:00:05]} Bc5 {[%clk 00:02:52]} {[%emt 00:00:01]} 20. Ng5 {[%clk 00:00:12]}
{[%emt 00:00:09]} Qe7 {[%clk 00:02:43]} {[%emt 00:00:11]} 21. Be2 {[%clk
00:00:13]} {[%emt 00:00:01]} f6 {[%clk 00:02:42]} {[%emt 00:00:03]} 22. Nf3
{[%clk 00:00:08]} {[%emt 00:00:07]} a5 {[%clk 00:02:39]} {[%emt 00:00:05]} 23.
b6 {[%clk 00:00:05]} {[%emt 00:00:04]} O-O {[%clk 00:02:33]} {[%emt 00:00:08]}
24. Bd2 {[%clk 00:00:04]} {[%emt 00:00:04]} Rac8 {[%clk 00:02:27]} {[%emt
00:00:08]} 25. Be1 {[%clk 00:00:04]} {[%emt 00:00:02]} Bb4 {[%clk 00:02:18]}
{[%emt 00:00:10]} 26. Rb3 {[%emt 00:00:05]} Ng3 {[%clk 00:02:07]} {[%emt
00:00:11]} 27. Bxg3 {[%emt 00:00:03]} 0-1

[Event "Campeonato de España Universitario Relámpago"]
[Site "Zaragoza, Spain"]
[Date "2024.04.24"]
[Round "2.5"]
[White "Quintin Navarro, Alberto"]
[Black "Rodriguez Ferreiros, Andres"]
[Result "0-1"]
[TimeControl "3 min + 2 sg"]
[WhiteFideId "2292688"]
[BlackFideId "32066201"]
[WhiteElo "2289"]
[BlackElo "2018"]

1. Nf3 {[%clk 00:03:02]} {[%emt 00:00:01]} e6 {[%clk 00:03:03]} {[%emt
00:00:03]} 2. c4 {[%clk 00:03:02]} {[%emt 00:00:02]} d5 {[%clk 00:02:58]}
{[%emt 00:00:06]} 3. d4 {[%clk 00:03:02]} {[%emt 00:00:02]} a6 {[%clk
00:02:45]} {[%emt 00:00:15]} 4. Bg5 {[%clk 00:03:01]} {[%emt 00:00:03]} Nf6
{[%clk 00:02:41]} {[%emt 00:00:07]} 5. Nbd2 {[%clk 00:02:46]} {[%emt 00:00:17]}
Be7 {[%clk 00:01:52]} {[%emt 00:00:50]} 6. g3 {[%clk 00:02:44]} {[%emt
00:00:05]} dxc4 {[%clk 00:01:44]} {[%emt 00:00:11]} 7. Bg2 {[%clk 00:02:30]}
{[%emt 00:00:16]} Nc6 {[%clk 00:01:23]} {[%emt 00:00:23]} 8. e3 {[%clk
00:02:23]} {[%emt 00:00:09]} b5 {[%clk 00:01:08]} {[%emt 00:00:17]} 9. Bxf6
{[%clk 00:02:20]} {[%emt 00:00:04]} gxf6 {[%clk 00:00:53]} {[%emt 00:00:17]} 10.
O-O {[%clk 00:02:06]} {[%emt 00:00:16]} Bb7 {[%clk 00:00:53]} {[%emt 00:00:02]}
11. Rc1 {[%clk 00:02:05]} {[%emt 00:00:03]} Nb4 {[%clk 00:00:49]} {[%emt
00:00:05]} 12. a4 {[%clk 00:01:48]} {[%emt 00:00:19]} Nd3 {[%clk 00:00:22]}
{[%emt 00:00:29]} 13. Rb1 {[%clk 00:01:47]} {[%emt 00:00:03]} c5 {[%clk
00:00:22]} {[%emt 00:00:02]} 14. Qc2 {[%clk 00:01:29]} {[%emt 00:00:20]} cxd4
{[%clk 00:00:23]} {[%emt 00:00:02]} 15. exd4 {[%clk 00:01:28]} {[%emt
00:00:03]} Rc8 {[%clk 00:00:23]} {[%emt 00:00:03]} 16. axb5 {[%clk 00:01:19]}
{[%emt 00:00:11]} axb5 {[%clk 00:00:24]} 17. Ra1 {[%clk 00:01:08]} {[%emt
00:00:13]} Bd5 {[%clk 00:00:24]} {[%emt 00:00:02]} 18. Ra7 {[%clk 00:00:51]}
{[%emt 00:00:19]} O-O {[%clk 00:00:22]} {[%emt 00:00:04]} 19. Nb1 {[%clk
00:00:27]} {[%emt 00:00:26]} Ra8 {[%clk 00:00:17]} {[%emt 00:00:07]} 20. Rxa8
{[%clk 00:00:25]} {[%emt 00:00:04]} Qxa8 {[%clk 00:00:18]} {[%emt 00:00:02]} 21.
Nh4 {[%clk 00:00:24]} {[%emt 00:00:03]} Bxg2 {[%clk 00:00:16]} {[%emt
00:00:03]} 22. Nxg2 {[%clk 00:00:25]} Qd5 {[%clk 00:00:10]} {[%emt 00:00:08]}
23. Nc3 {[%clk 00:00:25]} {[%emt 00:00:02]} Qxd4 {[%clk 00:00:11]} {[%emt
00:00:01]} 24. Nxb5 {[%clk 00:00:26]} Qc5 {[%clk 00:00:07]} {[%emt 00:00:06]}
25. Nc3 {[%clk 00:00:23]} {[%emt 00:00:06]} f5 {[%clk 00:00:07]} {[%emt
00:00:02]} 26. Ne2 {[%clk 00:00:18]} {[%emt 00:00:07]} Rb8 {[%clk 00:00:06]}
{[%emt 00:00:03]} 27. b4 {[%clk 00:00:07]} {[%emt 00:00:13]} Rxb4 {[%clk
00:00:06]} {[%emt 00:00:02]} 28. Qa2 {[%clk 00:00:06]} {[%emt 00:00:03]} Bf6
{[%clk 00:00:06]} {[%emt 00:00:02]} 29. Qa8+ {[%clk 00:00:07]} {[%emt
00:00:01]} Qf8 {[%clk 00:00:06]} {[%emt 00:00:01]} 30. Qf3 {[%clk 00:00:07]}
{[%emt 00:00:02]} Ne5 {[%clk 00:00:07]} {[%emt 00:00:02]} 31. Qf4 {[%clk
00:00:06]} {[%emt 00:00:03]} c3 {[%clk 00:00:07]} {[%emt 00:00:02]} 32. Qe3
{[%clk 00:00:05]} {[%emt 00:00:03]} Ng4 {[%clk 00:00:06]} {[%emt 00:00:02]} 33.
Qd3 {[%clk 00:00:06]} {[%emt 00:00:01]} Qc8 {[%clk 00:00:05]} {[%emt 00:00:03]}
34. Rc1 {[%clk 00:00:05]} {[%emt 00:00:03]} Qc5 {[%clk 00:00:06]} 35. Qf3
{[%clk 00:00:04]} {[%emt 00:00:03]} c2 {[%clk 00:00:06]} {[%emt 00:00:02]} 36.
Ne3 {[%clk 00:00:04]} {[%emt 00:00:01]} Nxe3 {[%clk 00:00:07]} {[%emt
00:00:01]} 37. Qxe3 {[%clk 00:00:05]} Qxe3 {[%clk 00:00:07]} {[%emt 00:00:02]}
38. fxe3 {[%clk 00:00:06]} Rb1 {[%clk 00:00:07]} {[%emt 00:00:02]} 39. Kf2
{[%clk 00:00:05]} {[%emt 00:00:03]} Rxc1 {[%clk 00:00:08]} {[%emt 00:00:01]} 40.
Nxc1 {[%clk 00:00:06]} Bb2 {[%clk 00:00:09]} 0-1

[ePGN "0.1;DGT LiveChess/2.2.6"]